{"text_format":"1","workbook":"xlsx","n_sheets":1,"sheets":["Price bid 29"],"not_rendered":{"charts":0,"images":0,"macros":1,"external_links":1,"defined_names":1,"comments":0,"pivot_tables":0},"unopened":[],"bounds":{"document_bytes":16777216,"sheet_cells":100000,"rows_first":2000,"rows_last":500,"rows_between":2000,"halvings":0,"cell_chars":16384,"cell_head_chars":4096},"cells_cut":0,"cells_raw":0,"read":"whole","date_system":"1900"}

{"sheet":"Price bid 29","index":0,"n_rows":35,"n_cols":10,"rows_kept":35,"cut":false,"hidden":false,"merged":[[25,3,25,9],[27,0,27,6],[28,0,28,8],[29,0,29,9],[30,0,30,9],[25,0,25,2],[24,0,24,2],[4,0,4,9],[2,0,2,9],[1,0,1,9],[0,0,0,9],[3,0,3,9]]}
["BHARAT HEAVY ELECTRICALS LIMITED JHANSI"]
["FACTORY CIVIL DEPARTMENT"]
["Price bid "]
["Name of work - Civil work for development of packing wood area near CDC in BHEL Jhansi."]
["Tender Enquiry No- FCX/TW/24/29"]
["Sl. No.","DSR 2021 ","Description of Work","% Allocation (Item-wise)","Unit ","Quantity ","Analysed rate of DSR-2021","Amount (in Rs.)","Rate per Unit \n(in Rs.)","Amount \n(in Rs.)"]
[1,"1.1.1","By Mechanical Transport including loading, unloading and stacking Lime, moorum, building rubish  upto1 km .",{"$f":"H7*0.5118/1029627.49","v":1.2810280680109989E-4},"Cum",{"$f":"[1]Measurement!H11","v":2},128.85714285714283,{"$f":"F7*G7","v":257.71428571428567},{"$f":"ROUND(J7/F7,2)","v":0},{"$f":"D7*$J$25","v":0}]
[2,"1.1.2","By Mechanical Transport including loading, unloading and stacking Earth   upto 1 km .",{"$f":"H8*0.5118/1029627.49","v":5.8446905603001826E-3},"Cum",{"$f":"[1]Measurement!H17","v":73},161.07142857142856,11758.214285714284,{"$f":"ROUND(J8/F8,2)","v":0},{"$f":"D8*$J$25","v":0}]
[3,"2.6.1","Earth work in excavation by mechanical means (Hydraulic excavator)/ manual means over areas (exceeding 30 cm in depth, 1.5 m in width as well as 10 sqm on plan) including getting out and disposal of excavated earth lead upto 50 m and lift upto 1.5 m, as directed by Engineer-in-charge. All kinds of soil",1.951291031963414E-2,"Cum",{"$f":"[1]Measurement!H27","v":214},183.43749999999997,39255.624999999993,0,0]
[4,"2.8.1","Earth work in excavation by mechanical means (Hydraulic excavator)/ manual means in foundation trenches or drains (not exceeding 1.5 m in width or 10 sqm on plan), including dressing of sides and ramming of bottoms, lift upto 1.5 m, including getting out the excavated soil and disposal of surplus excavated soil as directed, within a lead of 50 m. All Kinds of soil",3.6919429524527782E-3,"Cum",{"$f":"[1]Measurement!H34","v":29},256.11607142857144,7427.3660714285716,0,0]
[5,"2.9.1","Excavation work by mechanical means (Hydraulic excavator)/ manual means in foundation trenches or drains (not exceeding 1.5m in width or 10 sqm on plan), including dressing of sides and ramming of bottoms, lift upto 1.5 m, including getting out the excavated soil and disposal of surplus excavated soils as directed, within a lead of 50 m. - ordinary rock",2.0910351103221383E-3,"Cum",{"$f":"[1]Measurement!H38","v":9},467.41071428571422,4206.6964285714275,0,0]
[6,"2.9.3","Excavation work by mechanical means (Hydraulic excavator)/ manual means in foundation trenches or drains (not exceeding 1.5m in width or 10 sqm on plan), including dressing of sides and ramming of bottoms, lift upto 1.5 m, including getting out the excavated soil and disposal of surplus excavated soils as directed, within a lead of 50 m. - Hard rock (blasting prohibited)",1.6757572682912726E-3,"Cum",{"$f":"[1]Measurement!H41","v":3},1123.7499999999998,3371.2499999999991,0,0]
[7,2.25,"Filling available excavated earth (excluding rock) in trenches, plinth, sides of foundations etc. in layers not exceeding 20cm in depth, consolidating each deposited layer by ramming and watering, lead up to 50 m and lift upto 1.5 m.",2.4795508984100092E-3,"Cum",{"$f":"[1]Measurement!H44","v":22},226.74107142857139,4988.3035714285706,0,0]
[8,"4.1.3","P and L in position Cement concrete -1:2:4 (1 Cement: 4 coarse sand: 8 graded stone aggregate 20mm nominal size) excluding the cost of entering and shuttering all work up to plinth level.",1.159345047450122E-2,"cum",{"$f":"[1]Measurement!H48","v":5},4664.6874999999991,23323.437499999996,0,0]
[9,"4.1.6","Providing and laying in position cement concrete of specified grade excluding the cost of centering and shuttering - All work up to plinth level : 1:3:6 (1 Cement : 3 coarse sand (zone-III): 6 graded stone aggregate 40 mm nominal size).",0.29993365582564796,"Cum",{"$f":"[1]Measurement!H57","v":130},4641.5357142857147,603399.64285714296,0,0]
[10,"5.1.3","Providing and laying in position specified grade of reinforced cement concrete, excluding the cost of centering, shuttering, finishing and reinforcement - All work up to plinth level : 1:2:4 (1 cement : 2 coarse sand : 4 graded stone aggregate 20 mm nominal size).",0.36068547106293747,"Cum",{"$f":"[1]Measurement!H66","v":140},5182.9910714285706,725618.74999999988,0,0]
[11,"5.9.1","Centering and shuttering including strutting, propping etc. and removal of form for all heights :  Foundations, footings, bases of columns, etc. for mass concrete",4.6468778341517327E-3,"Sqm",{"$f":"[1]Measurement!H80","v":34},274.95535714285711,9348.4821428571413,0,0]
[12,"5.22.6","Steel reinforcement for R.C.C. work including straightening, cutting, bending, placing in position and binding all complete upto plinth level. Thermo-Mechanically Treated bars of grade Fe-500D or more.",3.7420274928751177E-2,"Kg",{"$f":"[1]Measurement!H85","v":3500},21.508928571428569,75281.25,0,0]
[13,"6.1.2","Brick work with common burnt clay F.P.S. (non modular) bricks of class designation 7.5 in foundation and plinth in: Cement mortar 1:6 (1 cement : 6 coarse sand)",1.6616812267845393E-2,"Cum",{"$f":"[1]Measurement!H92","v":6},5571.5535714285716,33429.321428571428,0,0]
[14,"11.3.1","Cement concrete flooring 1:2:4 (1 cement : 2 coarse sand : 4 graded stone aggregate) finished with a floating coat of neat cement, including cement slurry, but excluding the cost of nosing of steps etc. complete.  40 mm thick with 20 mm nominal size stone aggregate. \n",0.20863537480503191,"Sqm",{"$f":"[1]Measurement!H99","v":1090},385.0714285714285,419727.85714285704,0,0]
[15,"13.1.2","12 mm cement plaster of mix : 1:6 (1 cement: 6 fine sand)",2.6327825193778161E-3,"Sqm",{"$f":"[1]Measurement!H106","v":23},230.28571428571428,5296.5714285714284,0,0]
[16,"13.2.2","15 mm cement plaster on the rough side of single or half brick wall of mix : 1:6 (1 cement: 6 fine sand)",3.0166959442917414E-3,"Sqm",{"$f":"[1]Measurement!H110","v":23},263.86607142857139,6068.9196428571422,0,0]
[17,"19.3.5","Providing and laying cement concrete 1:5:10 (1 cement : 5 coarse sand : 10 graded stone aggregate 40 mm nominal size) up to haunches of S.W. pipes including bed concrete as per standard design : 300 mm diameter S.W. pipe",6.2082639365871181E-3,"Metre",{"$f":"[1]Measurement!H115","v":15},832.642857142857,12489.642857142855,0,0]
[18,"DSR","Not covered above but covered in DSR-2021",1.3186351891206791E-2,"DSR 21",29711.360000000001,0.89285714285714279,26528,0,0]
["Total ",null,null,{"$f":"SUM(D7:D24)","v":1.000000001406542},null,null,"Rs ",{"$f":"SUM(H7:H24)","v":2011777.0446428568}]
["In words ",null,null,{"$f":"rup(J25)","v":0}]
[]
[]
["Note -GST extra as applicable"]
["1. Bidder has to quote in above unlocked cell (J-25) only. Item rate shall be calculated automatically. Calculated item rates upto two decimal points may be adjusted w.r.t. gross total amount and it shall be the itemwise final rate for  execution of contract and all other purposes."]
["2. Quoted gross total amount should be considered only if quoted in this excel sheet and print out of this should only be considered for evaluation.  If Price is quoted in any other format other than the Excel Sheet enclosed to the NIT , the offer of the bidder  will be rejected."]
[]
[]
[]
[null,null,null,null,null,null,null,null,"(Signature and Seal of Contractor  )"]